fUSD/lending_fUSD_20240114
["ID","MTS","AMOUNT","RATE_DAILY","PERIOD"]
[311555741,1705234241050,-864.25785869,0.00022897,2]
[311555742,1705234241160,-314.999999,0.00022897,2]
[311555743,1705234241171,-953.84846005,0.00022897,2]
[311555744,1705234241220,-656.6484,0.00022897,2]
[311555745,1705234241231,-478.192205,0.00022897,2]
[311555746,1705234241282,-2724.90826101,0.00022897,2]
[311555747,1705234241293,-969.81767263,0.00022897,2]
[311555748,1705234241304,-400.85747181,0.00022897,2]
[311555749,1705234242947,-78469.05422616,0.00022897,2]
[311555750,1705234243062,-542.51008001,0.00022897,2]
[311555751,1705234243073,-2762.71287719,0.00022897,2]
[311555752,1705234243085,-532.940915,0.00022897,2]
[311555753,1705234243094,-194.43154397,0.00022897,2]
[311555754,1705234243102,-199.40669036,0.00022897,2]
[311555755,1705234243112,-246.15177983,0.00022898,2]
[311555756,1705234243121,-314.53850183,0.00022898,2]
[311555757,1705234243130,-2622.35646163,0.00022898,2]
[311555758,1705234243141,-333.46905491,0.00022898,2]
[311555759,1705234243151,-33.72820176,0.00022899,2]
[311555760,1705234243162,-3274.86687523,0.00022899,2]
[311555761,1705234243172,-2722.84682326,0.00022899,2]
[311555762,1705234243184,-523.88533384,0.00022899,2]
[311555763,1705234243195,-10840.0,0.00022899,2]
[311555764,1705234243206,-613.09825755,0.00022899,2]
[311555765,1705234243218,-371.88983172,0.00022899,2]
[311555766,1705234243233,-1008.52847505,0.00022899,2]
[311555767,1705234243244,-5636.90340328,0.00022899,2]
[311555769,1705234243274,-4256.00053033,0.00022899,2]
[311555771,1705234243285,-650.0,0.00022899,2]
[311555772,1705234243297,-418.20152495,0.00022899,2]
[311555773,1705234243309,-1000.0,0.00022899,2]
[311555774,1705234243324,-3861.42427209,0.00022899,2]
[311555775,1705234243335,-616.1268203,0.00022899,2]
[311555776,1705234243346,-3003.82463808,0.00022899,2]
[311555777,1705234243365,-5408.68999681,0.00022899,2]
[311555778,1705234243376,-1055.23642804,0.00022899,2]
[311555791,1705234245969,-195.19758057,0.00022896,2]
[311555792,1705234245979,-30484.43052131,0.00022899,2]
[311555793,1705234245991,-21398.09054124,0.00022899,2]
[311555794,1705234246084,-296.30780668,0.00022899,2]
[311555795,1705234246198,-7751.22260362,0.00022899,2]
[311555796,1705234246209,-781.76322826,0.00022899,2]
[311555797,1705234246257,-28562.22626119,0.00022899,2]
[311555798,1705234246267,-15564.47995162,0.00022899,2]
[311555799,1705234246279,-98174.82275078,0.00022899,2]
[311555800,1705234246289,-528.2326,0.00022899,2]
[311555801,1705234246300,-1000.0,0.00022899,2]
[311555802,1705234246310,-5000.0,0.000229,2]
[311555803,1705234246320,-250.0,0.000229,2]
[311555804,1705234246329,-249.49289134,0.000229,2]
[311555805,1705234246339,-300.0,0.000229,8]
[311555806,1705234246349,-154.72,0.00022929,2]
[311555807,1705234246358,-536.54907333,0.00022945,2]
[311555808,1705234246368,-4651.86755386,0.0002298,2]
[311555809,1705234246377,-505.14833245,0.00022997,2]
[311555810,1705234246388,-2944.88335656,0.00022998,2]
[311555811,1705234246398,-3303.60418818,0.00022998,2]
[311555812,1705234246408,-401.20702061,0.00022998,2]
[311555813,1705234246418,-232.47307864,0.00022999,2]
[311555814,1705234246427,-2000.0,0.00022999,2]
[311555815,1705234246437,-200.0,0.00022999,2]
[311555816,1705234246446,-14336.1181188,0.00022999,2]
[311555817,1705234246456,-1350.8458335,0.00022999,2]
[311555818,1705234246465,-300.0,0.00022999,2]
[311555819,1705234246477,-300.0,0.00022999,2]
[311555820,1705234246486,-300.0,0.00022999,2]
[311555821,1705234246496,-300.0,0.00022999,2]
[311555822,1705234246507,-300.0,0.00022999,2]
[311555823,1705234246516,-300.0,0.00022999,2]
[311555824,1705234246525,-300.0,0.00022999,2]
[311555825,1705234246535,-300.0,0.00022999,2]
[311555826,1705234246545,-300.0,0.00022999,2]
[311555827,1705234246554,-300.0,0.00022999,2]
[311555828,1705234246563,-300.0,0.00022999,2]
[311555829,1705234246573,-300.0,0.00022999,2]
[311555830,1705234246582,-300.0,0.00022999,2]
[311555831,1705234246591,-300.0,0.00022999,2]
[311555832,1705234246600,-300.0,0.00022999,2]
[311555833,1705234246609,-300.0,0.00022999,2]
[311555834,1705234246619,-171.205626,0.00022999,7]
[311555835,1705234246628,-171.205626,0.00022999,7]
[311555836,1705234246637,-154.907979,0.00022999,7]
[311555837,1705234246646,-159.397677,0.00022999,7]
[311555838,1705234246656,-151.0,0.00022999,7]
[311555839,1705234246665,-155.758769,0.00022999,7]
[311555840,1705234246674,-154.29703,0.00022999,7]
[311555841,1705234246684,-475.63069,0.00022999,7]
[311555842,1705234246693,-475.63069,0.00022999,7]
[311555843,1705234246703,-151.0,0.00022999,7]
[311555844,1705234246712,-353.66496,0.00022999,7]
[311555845,1705234246722,-353.66496,0.00022999,7]
[311555846,1705234246733,-175.722675,0.00022999,7]
[311555847,1705234246742,-151.0,0.00022999,7]
[311555848,1705234246751,-151.0,0.00022999,7]
[311555849,1705234246760,-624.911735,0.00022999,7]
[311555850,1705234246769,-151.0,0.00023,7]
[311555851,1705234246779,-157.697527,0.00023,7]
[311555852,1705234246788,-154.778726,0.00023,7]
[311555853,1705234246798,-151.0,0.00023,7]
[311555854,1705234246807,-154.747229,0.00023,7]
[311555855,1705234246817,-151.0,0.00023,7]
[311555856,1705234246826,-151.0,0.00023,7]
[311555857,1705234246835,-757.54413,0.00023,7]
[311555858,1705234246845,-757.54413,0.00023,7]
[311555859,1705234246854,-151.0,0.00023,7]
[311555860,1705234246863,-151.0,0.00023,7]
[311555861,1705234246872,-884908.10725601,0.00023,2]
[311555862,1705234246884,-11695.93398219,0.00023,2]
[311555863,1705234246895,-1296.599175,0.00023,2]
[311555864,1705234246916,-2270.85211393,0.00023,2]
[311555865,1705234246927,-915.73984991,0.00023,2]
[311555866,1705234274429,150.0,0.00022,2]
[311555867,1705234329115,231.63,0.00020055,2]
[311555868,1705234435315,-516.05068541,0.00022113,2]
[311555869,1705234435354,-155.0,0.00022113,2]
[311555870,1705234435393,-460.52862004,0.00022114,2]
[311555871,1705234437962,-236.8413891,0.00022114,2]
[311555872,1705234438007,-1612.55339892,0.00022116,4]
[311555873,1705234443840,176.17,0.00022,2]
[311555874,1705234449773,256.63,0.00022,2]
[311555875,1705234463860,155.38,0.00021982,2]
[311555876,1705234561888,840.0,0.00021744,2]
[311555877,1705234563730,193.76,0.00021744,2]
[311555878,1705234627749,172.89,0.00021727,2]
[311555879,1705234707889,150.38,0.00021941,2]
[311555880,1705234726400,2000.0,0.00021796,2]
[311555881,1705234787048,220.04,0.00019833,2]
[311555882,1705234787455,220.04,0.00022097,2]
[311555883,1705234853125,6649.4,0.00021918,2]
[311555884,1705234859163,167.04,0.00021969,2]
[311555888,1705234992538,180.84,0.00021777,2]
[311555890,1705235012168,328.0,0.00021765,2]
[311555891,1705235014035,207.0,0.00021287,2]
[311555896,1705235070986,351.78,0.00022,2]
[311555897,1705235075880,256.77218147,0.00022,2]
[311555934,1705235149504,446.92630179,0.00020288,2]
[311555938,1705235201786,-203.13485525,0.00022118,2]
[311555939,1705235201808,-160.42,0.00022232,2]
[311555940,1705235201830,-1636.44514475,0.00022436,4]
[311555941,1705235208752,-350.0,0.00022435,2]
[311555942,1705235219571,198.03,0.00019955,2]
[311555965,1705235432132,-236.27638756,0.00022218,2]
[311555966,1705235432142,-198.03,0.00022219,2]
[311555967,1705235432151,-329.07996645,0.00022299,4]
[311555968,1705235432163,-1163.37216804,0.00022299,4]
[311555977,1705235432995,-1725.75539067,0.00022299,4]
[311555978,1705235433023,-456.18934559,0.00022299,4]
[311555979,1705235433032,-500.0,0.000223,8]
[311555980,1705235433040,-158.0,0.00022399,2]
[311555981,1705235433049,-3176.88788296,0.00022399,2]
[311555997,1705235438128,-363.61901928,0.00022399,2]
[311555998,1705235438295,-288.41386898,0.00022399,2]
[311555999,1705235438470,-804.00929901,0.00022399,2]
[311556000,1705235438480,-1000.0,0.000224,8]
[311556001,1705235438489,-1022.74622854,0.00022437,3]
[311556002,1705235438498,-471.19698076,0.0002244,3]
[311556003,1705235438507,-285.75795971,0.0002244,3]
[311556004,1705235438516,-408.24,0.000225,2]
[311556005,1705235438525,-264.63,0.000225,2]
[311556006,1705235438534,-816.0,0.000225,2]
[311556007,1705235438544,-417.63,0.000225,2]
[311556008,1705235438553,-314.34,0.000225,2]
[311556009,1705235438563,-314.34,0.000225,2]
[311556010,1705235438574,-418.07,0.000225,2]
[311556011,1705235438584,-660.74,0.000225,2]
[311556013,1705235438593,-418.07,0.000225,2]
[311556015,1705235438601,-294.11,0.000225,2]
[311556016,1705235438610,-467.2,0.000225,2]
[311556018,1705235438619,-294.11,0.000225,2]
[311556020,1705235438629,-1600.0,0.000225,8]
[311556021,1705235438638,-222.09741979,0.00022568,4]
[311556022,1705235438649,-440.74,0.000226,2]
[311556023,1705235438658,-2100.0,0.000226,8]
[311556024,1705235438667,-1200.4559,0.00022698,2]
[311556025,1705235438676,-745.4094712,0.00022698,2]
[311556026,1705235438697,-498.28279484,0.00022698,2]
[311556027,1705235438709,-79928.25118799,0.00022698,2]
[311556161,1705235441276,-2832.16214597,0.00022698,2]
[311556162,1705235441286,-299.77217279,0.000227,2]
[311556163,1705235441296,-2700.0,0.000227,8]
[311556164,1705235441308,-155.0,0.00022701,2]
[311556165,1705235441317,-299.77217274,0.00022729,2]
[311556166,1705235441327,-180.84,0.00022756,2]
[311556167,1705235441337,-299.77217274,0.00022757,2]
[311556168,1705235441346,-299.77217274,0.00022786,2]
[311556169,1705235441355,-183.11107069,0.00022796,2]
[311556170,1705235441365,-745.85738176,0.00022796,2]
[311556171,1705235441374,-156.58316391,0.00022796,2]
[311556172,1705235441384,-185.51535097,0.00022796,2]
[311556173,1705235441393,-342.03388694,0.00022796,2]
[311556174,1705235441402,-259.81123898,0.00022796,2]
[311556175,1705235441411,-473.8673768,0.00022796,2]
[311556176,1705235441421,-992.83578239,0.00022796,2]
[311556177,1705235441430,-187.8791669,0.00022796,2]
[311556178,1705235441439,-202.00778857,0.00022796,2]
[311556179,1705235441449,-155.45470079,0.00022796,2]
[311556180,1705235441458,-471.53335445,0.00022796,2]
[311556181,1705235441467,-2580.55567474,0.00022797,2]
[311556182,1705235441477,-9681.48205454,0.00022797,2]
[311556183,1705235441486,-1000.0,0.00022798,2]
[311556184,1705235441495,-77928.62485888,0.00022798,2]
[311556185,1705235441507,-143349.98793607,0.00022798,2]
[311556186,1705235441531,-342.76186024,0.00022798,2]
[311556208,1705235443069,-236.27638756,0.00022796,2]
[311556209,1705235443079,-195.72978956,0.00022798,2]
[311556210,1705235443090,-3609.63733075,0.00022798,2]
[311556211,1705235443131,-17649.45041758,0.00022798,2]
[311556212,1705235443145,-723.25525563,0.00022798,2]
[311556213,1705235443156,-451.92024556,0.00022798,2]
[311556214,1705235443168,-748.63230573,0.00022798,2]
[311556215,1705235443177,-346.30519082,0.000228,8]
[311556216,1705235443188,-153.69480918,0.000228,8]
[311556217,1705235443197,-299.77217274,0.00022814,2]
[311556218,1705235443207,-27.48301808,0.00022843,2]
[311556219,1705235443226,-272.28915466,0.00022843,2]
[311556220,1705235443236,-299.77217274,0.00022871,2]
[311556221,1705235443245,-250.0,0.000229,2]
[311556222,1705235443254,-2355.65665638,0.000229,2]
[311556223,1705235443266,-2644.34334362,0.000229,2]
[311556224,1705235443275,-1219.07917237,0.000229,2]
[311556225,1705235443287,-374.72962927,0.000229,2]
[311556226,1705235443298,-293.80853246,0.000229,2]
[311556227,1705235443309,-1228.53770147,0.000229,2]
[311556228,1705235443320,-948.4779212,0.000229,2]
[311556229,1705235443332,-7967.13658599,0.000229,2]
[311556230,1705235443344,-80696.89865724,0.000229,2]
[311556231,1705235443352,-299.77217274,0.000229,2]
[311556232,1705235443362,-205.4335435,0.000229,6]
[311556233,1705235443371,-500.0,0.000229,8]
[311556234,1705235443380,-1978.61498217,0.00022998,3]
[311556235,1705235443389,-650.75415232,0.00022998,2]
[311556236,1705235443398,-243.7540343,0.00022998,2]
[311556237,1705235443408,-338.55890367,0.00022998,2]
[311556238,1705235443418,-19028.4235894,0.00022998,2]
[311556239,1705235443428,-156.47625858,0.00022998,2]
[311556240,1705235443437,-155.6556456,0.00022998,2]
[311556241,1705235443446,-4479.63512611,0.00022998,2]
[311556242,1705235443455,-652.03288826,0.00022998,2]
[311556243,1705235443465,-345.44939268,0.00022998,2]
[311556244,1705235443474,-11826.25955716,0.00022998,2]
[311556245,1705235443483,-155.26308013,0.00022998,2]
[311556246,1705235443493,-9816.07163943,0.00022998,2]
[311556247,1705235443502,-1524.66317032,0.00022998,2]
[311556248,1705235443511,-198.87132187,0.00022998,2]
[311556249,1705235443521,-363.64755917,0.00022998,2]
[311556250,1705235443531,-220.15288729,0.00022998,2]
[311556252,1705235443541,-155.0,0.00022998,2]
[311556254,1705235443550,-335.15774498,0.00022998,2]
[311556256,1705235443559,-632.2906155,0.00022998,2]
[311556258,1705235443567,-2612.76863363,0.00022998,2]
[311556260,1705235443577,-155.0,0.00022998,2]
[311556261,1705235443585,-767.5348565,0.00022998,2]
[311556263,1705235443595,-185.29786588,0.00022998,2]
[311556265,1705235443604,-14775.79997811,0.00022999,2]
[311556266,1705235443613,-300.0,0.00022999,2]
[311556268,1705235443622,-300.0,0.00022999,2]
[311556270,1705235443632,-300.0,0.00022999,2]
[311556271,1705235443641,-300.0,0.00022999,2]
[311556272,1705235443650,-300.0,0.00022999,2]
[311556273,1705235443660,-300.0,0.00022999,2]
[311556274,1705235443669,-300.0,0.00022999,2]
[311556275,1705235443678,-300.0,0.00022999,2]
[311556276,1705235443688,-300.0,0.00022999,2]
[311556277,1705235443697,-300.0,0.00022999,2]
[311556278,1705235443707,-300.0,0.00022999,2]
[311556279,1705235443717,-300.0,0.00022999,2]
[311556280,1705235443726,-300.0,0.00022999,2]
[311556281,1705235443735,-300.0,0.00022999,2]
[311556282,1705235443746,-300.0,0.00022999,2]
[311556283,1705235443760,-300.0,0.00022999,2]
[311556284,1705235443770,-51099.2370317,0.00023,2]
[311556285,1705235443782,-1090.25048855,0.00023,2]
[311556286,1705235443818,-53932.3944412,0.00023,2]
[311556287,1705235443840,-2434.93162961,0.00023,2]
[311556288,1705235443852,-2277.75955266,0.00023,2]
[311556289,1705235443873,-5015.95823366,0.00023,2]
[311556290,1705235443884,-1047.60533595,0.00023,2]
[311556291,1705235443896,-1933.93121892,0.00023,2]
[311556292,1705235443908,-447.08291066,0.00023,2]
[311556298,1705235446150,-261.9455,0.00022598,2]
[311556299,1705235446160,-338.29261888,0.00023,2]
[311556300,1705235446207,-3054.23820503,0.00023,2]
[311556301,1705235446266,-682.95485568,0.00023,2]
[311556302,1705235446278,-4073.6468624,0.00023,2]
[311556303,1705235446290,-353.86054689,0.00023,2]
[311556304,1705235446399,-2882.23338395,0.00023,2]
[311556305,1705235446411,-7792.58086538,0.00023,2]
[311556306,1705235446423,-1014.8698506,0.00023,2]
[311556307,1705235446466,-2290.46103287,0.00023,2]
[311556308,1705235446478,-8691.75106017,0.00023,2]
[311556309,1705235446489,-3864.00453515,0.00023,2]
[311556310,1705235446519,-531.911,0.00023,2]
[311556311,1705235446530,-773.56478229,0.00023,2]
[311556315,1705235577527,-2000.0,0.00022219,2]
[311556316,1705235578549,-605.01077955,0.00022219,2]
[311556317,1705235578572,-737.6,0.0002222,2]
[311556318,1705235578593,-150.0,0.0002248,2]
[311556319,1705235582471,150.0,0.00022697,2]
[311556320,1705235591576,236.27638756,0.00022697,2]
[311556321,1705235622386,121.11283289,0.00022598,2]
[311556322,1705235622408,36.88962362,0.00022598,2]
[311556326,1705235651606,178.22,0.00020188,2]
[311556327,1705235651826,178.22,0.00022452,2]
[311556328,1705235687442,1200.0,0.00025,15]
[311556329,1705235845645,156.72,0.0002212,2]
[311556330,1705235877053,1087.48890999,0.00022611,2]
[311556331,1705235935597,362.46146639,0.00022097,2]
[311556332,1705235935619,47.45853361,0.00022097,2]
[311556333,1705235959061,162.03,0.00022342,2]
[311556334,1705235966141,252.18,0.00022121,2]
[311556335,1705236093966,207.0,0.00021806,2]
[311556336,1705236112422,160.39,0.00020192,2]
[311556337,1705236112612,160.39,0.00022456,2]
[311556338,1705236144585,400.0,0.000223,8]
[311556339,1705236146685,610.55146639,0.000224,8]
[311556340,1705236146707,189.44853361,0.000224,8]
[311556341,1705236148759,1200.0,0.000225,8]
[311556342,1705236150894,610.55146639,0.000226,8]
[311556343,1705236194063,384.01,0.00031,120]
[311556345,1705236377629,672.06,0.00022034,2]
[311556346,1705236416888,156.72,0.00022042,2]
[311556347,1705236464573,164.72,0.00021957,2]
[311556352,1705236550245,4376.21,0.00021869,2]
[311556354,1705236559271,179.51,0.00019942,2]
[311556357,1705236603690,202.07,0.00021838,2]
[311556358,1705236605179,158.45,0.00022016,2]
[311556364,1705236632317,-300.0,0.00022193,2]
[311556365,1705236632331,-161.62,0.00022193,2]
[311556366,1705236632346,-47.46053199,0.00022201,2]
[311556367,1705236632923,-117.25946801,0.00022201,2]
[311556368,1705236632935,-179.51,0.00022206,2]
[311556369,1705236632946,-275.28174572,0.000223,8]
[311556370,1705236633026,-24.71825428,0.000223,8]
[311556371,1705236633037,-298.15429572,0.000224,2]
[311556372,1705236633051,-285.56155393,0.000224,2]
[311556373,1705236633063,-700.0,0.000224,8]
[311556374,1705236633074,-164.72,0.00022445,2]
[311556375,1705236633086,-158.06005185,0.000225,2]
[311556376,1705236633097,-1760.27,0.000225,2]
[311556377,1705236633108,-1100.0,0.000225,8]
[311556378,1705236633119,-1500.0,0.000226,8]
[311556379,1705236633131,-158.06005184,0.00022633,2]
[311556380,1705236633142,-946.30898268,0.00022639,2]
[311556381,1705236633153,-150.0,0.00022685,2]
[311556382,1705236633164,-164.72,0.00022689,2]
[311556383,1705236633175,-20244.992,0.00022698,2]
[311556384,1705236633186,-800.0433,0.00022698,2]
[311556385,1705236633198,-793.4183035,0.000227,8]
[311556386,1705236633212,-1106.5816965,0.000227,8]
[311556387,1705236633224,-241.67446715,0.00022701,2]
[311556388,1705236633235,-158.06005184,0.00022767,2]
[311556389,1705236633247,-1598.73,0.00022768,2]
[311556390,1705236633259,-300.0,0.000228,8]
[311556391,1705236633271,-200.0,0.00022816,2]
[311556392,1705236633283,-800.0,0.00022816,2]
[311556393,1705236633295,-545.42,0.00022816,2]
[311556394,1705236633307,-500.0,0.00022885,2]
[311556395,1705236633319,-500.0,0.00022885,2]
[311556396,1705236633331,-500.0,0.00022885,2]
[311556397,1705236633343,-500.0,0.00022885,2]
[311556398,1705236633355,-500.0,0.00022885,2]
[311556399,1705236633366,-266.5819,0.00022885,2]
[311556400,1705236633378,-1000.0,0.00022885,2]
[311556401,1705236633390,-1000.0,0.00022885,2]
[311556402,1705236633402,-1000.0,0.00022885,2]
[311556403,1705236633413,-1000.0,0.00022885,2]
[311556404,1705236633425,-1000.0,0.00022885,2]
[311556405,1705236633436,-1000.0,0.00022885,2]
[311556406,1705236633448,-1000.0,0.00022885,2]
[311556407,1705236633459,-1000.0,0.00022885,2]
[311556408,1705236633470,-1000.0,0.00022885,2]
[311556409,1705236633482,-1000.0,0.00022885,2]
[311556410,1705236633493,-1000.0,0.00022885,2]
[311556411,1705236633505,-1000.0,0.00022885,2]
[311556412,1705236633516,-1000.0,0.00022885,2]
[311556413,1705236633527,-1000.0,0.00022885,2]
[311556414,1705236633539,-1000.0,0.00022885,2]
[311556415,1705236633550,-1000.0,0.00022885,2]
[311556416,1705236633562,-1000.0,0.00022885,2]
[311556417,1705236633573,-500.03555139,0.00022885,2]
[311556418,1705236633588,-499.96444861,0.00022885,2]
[311556419,1705236633600,-53.82384566,0.00022885,2]
[311556420,1705236633615,-946.17615434,0.00022885,2]
[311556421,1705236633626,-1000.0,0.00022885,2]
[311556422,1705236633638,-1000.0,0.00022885,2]
[311556423,1705236633650,-1000.0,0.00022885,2]
[311556424,1705236633661,-1000.0,0.00022885,2]
[311556425,1705236633672,-1000.0,0.00022885,2]
[311556426,1705236633684,-1000.0,0.00022885,2]
[311556427,1705236633695,-1000.0,0.00022885,2]
[311556428,1705236633707,-375.81425703,0.00022885,2]
[311556429,1705236633722,-409.22293735,0.00022885,2]
[311556430,1705236633740,-214.96280562,0.00022885,2]
[311556431,1705236633750,-1000.0,0.00022885,2]
[311556432,1705236633759,-193.33623109,0.00022885,2]
[311556433,1705236634082,-806.66376891,0.00022885,2]
[311556434,1705236634108,-1000.0,0.00022885,2]
[311556435,1705236634118,-1000.0,0.00022885,2]
[311556436,1705236634128,-827.5895,0.00022885,2]
[311556437,1705236634137,-500.0,0.00022885,2]
[311556438,1705236634146,-500.0,0.00022885,2]
[311556439,1705236634155,-500.0,0.00022885,2]
[311556440,1705236634165,-500.0,0.00022885,2]
[311556441,1705236634174,-357.7100839,0.00022885,2]
[311556442,1705236634185,-142.2899161,0.00022885,2]
[311556443,1705236634194,-500.0,0.00022885,2]
[311556444,1705236634203,-349.2799,0.00022885,2]
[311556445,1705236634212,-611.8319634,0.00022899,2]
[311556446,1705236634230,-394.5235147,0.00022899,2]
[311556447,1705236634241,-250.0,0.000229,2]
[311556448,1705236634250,-499.99,0.000229,2]
[311556449,1705236634259,-8416.691897,0.000229,2]
[311556450,1705236634269,-500.0,0.000229,3]
[311556451,1705236634279,-188.01988393,0.000229,2]
[311556452,1705236634288,-205.4133664,0.000229,2]
[311556453,1705236634298,-158.06005184,0.000229,2]
[311556454,1705236634308,-3265.98,0.000229,2]
[311556455,1705236634317,-865.32817799,0.000229,2]
[311556456,1705236634327,-539.2436259,0.000229,4]
[311556457,1705236634335,-306.5220206,0.000229,2]
[311556458,1705236634345,-300.0,0.000229,8]
[311556459,1705236634354,-164.72,0.00022933,2]
[311556460,1705236634363,-150.99,0.00022959,2]
[311556461,1705236634373,-800.0,0.00022959,2]
[311556462,1705236634383,-1374.32706454,0.00022968,2]
[311556463,1705236634395,-327.84761538,0.00022968,2]
[311556464,1705236634411,-196.155894,0.00022968,2]
[311556465,1705236634421,-155.50297534,0.00022968,2]
[311556466,1705236634430,-1260.34340866,0.00022969,4]
[311556467,1705236634440,-419.05406593,0.00022986,2]
[311556468,1705236634449,-800.0,0.00022986,2]
[311556469,1705236634459,-233.61836211,0.00022998,2]
[311556470,1705236634468,-156.68200812,0.00022998,2]
[311556471,1705236634478,-156.02976627,0.00022998,2]
[311556472,1705236634487,-279.9488336,0.00022998,2]
[311556473,1705236634497,-278.99829053,0.00022998,2]
[311556474,1705236634507,-155.99911246,0.00022998,2]
[311556475,1705236634516,-155.90629526,0.00022998,2]
[311556476,1705236634525,-156.48298367,0.00022998,2]
[311556477,1705236634535,-156.30369912,0.00022998,2]
[311556478,1705236634544,-155.23611739,0.00022998,2]
[311556479,1705236634553,-156.81769853,0.00022998,2]
[311556480,1705236634562,-155.30744293,0.00022998,2]
[311556481,1705236634572,-156.47219482,0.00022998,2]
[311556482,1705236634581,-155.64624048,0.00022998,2]
[311556483,1705236634590,-520.32949231,0.00022998,2]
[311556484,1705236634599,-532.67845279,0.00022998,2]
[311556485,1705236634608,-170.04734047,0.00022998,2]
[311556486,1705236634617,-207.57887739,0.00022998,2]
[311556487,1705236634627,-273.03300484,0.00022998,2]
[311556488,1705236634637,-181.68808207,0.00022998,2]
[311556489,1705236634648,-291.16024501,0.00022998,2]
[311556490,1705236634657,-350.62513594,0.00022998,2]
[311556491,1705236634666,-171.56312015,0.00022998,2]
[311556492,1705236634675,-155.56428189,0.00022998,2]
[311556493,1705236634684,-270.37911746,0.00022998,2]
[311556494,1705236634693,-2935.98070362,0.00022998,2]
[311556495,1705236634703,-179.04544785,0.00022998,2]
[311556496,1705236634713,-899.97877969,0.00022998,2]
[311556497,1705236634722,-184.76242352,0.00022998,2]
[311556498,1705236634731,-155.47264453,0.00022998,2]
[311556499,1705236634741,-269.80513324,0.00022998,2]
[311556500,1705236634762,-348.98382831,0.00022998,2]
[311556501,1705236634772,-14768.6399395,0.00022998,2]
[311556502,1705236634782,-459.0883109,0.00022998,2]
[311556503,1705236634792,-922.6691898,0.00022998,2]
[311556504,1705236634802,-3236.0021744,0.00022998,2]
[311556505,1705236634811,-269.40280622,0.00022999,2]
[311556506,1705236634821,-1452.38332864,0.00022999,2]
[311556507,1705236634834,-10486.82282849,0.00022999,2]
[311556508,1705236634844,-696.50758074,0.00022999,2]
[311556509,1705236634854,-1912.9258164,0.00022999,2]
[311556510,1705236634864,-155.93597863,0.00022999,2]
[311556511,1705236634876,-300.02,0.00022999,2]
[311556512,1705236634886,-3292.32224499,0.00022999,2]
[311556513,1705236634898,-300.0,0.00022999,2]
[311556514,1705236634907,-300.0,0.00022999,2]
[311556515,1705236634918,-300.0,0.00022999,2]
[311556516,1705236634927,-300.0,0.00022999,2]
[311556517,1705236634937,-300.0,0.00022999,2]
[311556518,1705236634946,-300.0,0.00022999,2]
[311556519,1705236634956,-300.0,0.00022999,2]
[311556520,1705236634966,-300.0,0.00022999,2]
[311556521,1705236634975,-300.0,0.00022999,2]
[311556522,1705236634985,-300.0,0.00022999,2]
[311556523,1705236634994,-300.0,0.00022999,2]
[311556524,1705236635004,-300.0,0.00022999,2]
[311556525,1705236635013,-300.0,0.00022999,2]
[311556526,1705236635023,-300.0,0.00022999,2]
[311556527,1705236635033,-411008.06773536,0.00023,2]
[311556528,1705236635043,-1356.0,0.00023,2]
[311556529,1705236635052,-385.0,0.00023,2]
[311556530,1705236635062,-2470.973,0.00023,2]
[311556531,1705236635071,-1863.944,0.00023,2]
[311556532,1705236635081,-837.0,0.00023,2]
[311556533,1705236635091,-247.84,0.00023,2]
[311556534,1705236635100,-945.0,0.00023,2]
[311556535,1705236635109,-3090.987,0.00023,2]
[311556536,1705236635119,-527.0,0.00023,2]
[311556537,1705236635129,-745.491,0.00023,2]